{"text_format":"1","workbook":"xlsx","n_sheets":10,"sheets":["1ª MEDIÇÃO","2ª MEDIÇÃO","3ª MEDIÇÃO","4ª MEDIÇÃO","5ª MEDIÇÃO","6ª MEDIÇÃO","7ª MEDIÇÃO","8ª MEDIÇÃO","9ª MEDIÇÃO","PLANILHA SINTÉTICA"],"not_rendered":{"charts":0,"images":2,"macros":1,"external_links":12,"defined_names":1440,"comments":0,"pivot_tables":0},"unopened":[],"bounds":{"document_bytes":16777216,"sheet_cells":100000,"rows_first":2000,"rows_last":500,"rows_between":2000,"halvings":0,"cell_chars":16384,"cell_head_chars":4096},"cells_cut":0,"cells_raw":0,"read":"whole","date_system":"1900"}

{"sheet":"1ª MEDIÇÃO","index":0,"n_rows":4,"n_cols":10,"rows_kept":4,"cut":false,"hidden":true,"merged":[[0,0,0,8],[1,0,1,8],[2,0,2,8]]}
["TRIBUNAL DE JUSTIÇA DE PERNAMBUCO"]
[{"$f":"#REF!","v":{"$error":"#REF!"}}]
["MEMÓRIA DE CALCULO - 1ª MEDIÇÃO"]
["ITEM","DESCRIÇÃO","QUANT.","LARG.","COMP.","ALT.","TAXA","TOTAL","UNID","MEMORIAL FOTOGRÁFICO"]

{"sheet":"2ª MEDIÇÃO","index":1,"n_rows":4,"n_cols":10,"rows_kept":4,"cut":false,"hidden":true,"merged":[[0,0,0,8],[1,0,1,8],[2,0,2,8]]}
["TRIBUNAL DE JUSTIÇA DE PERNAMBUCO"]
[{"$f":"#REF!","v":{"$error":"#REF!"}}]
["MEMÓRIA DE CALCULO - 2ª MEDIÇÃO"]
["ITEM","DESCRIÇÃO","QUANT.","LARG.","COMP.","ALT.","TAXA","TOTAL","UNID","MEMORIAL FOTOGRÁFICO"]

{"sheet":"3ª MEDIÇÃO","index":2,"n_rows":4,"n_cols":10,"rows_kept":4,"cut":false,"hidden":true,"merged":[[0,0,0,8],[1,0,1,8],[2,0,2,8]]}
["TRIBUNAL DE JUSTIÇA DE PERNAMBUCO"]
[{"$f":"#REF!","v":{"$error":"#REF!"}}]
["MEMÓRIA DE CALCULO - 3ª MEDIÇÃO"]
["ITEM","DESCRIÇÃO","QUANT.","LARG.","COMP.","ALT.","TAXA","TOTAL","UNID","MEMORIAL FOTOGRÁFICO"]

{"sheet":"4ª MEDIÇÃO","index":3,"n_rows":4,"n_cols":10,"rows_kept":4,"cut":false,"hidden":true,"merged":[[0,0,0,8],[1,0,1,8],[2,0,2,8]]}
["TRIBUNAL DE JUSTIÇA DE PERNAMBUCO"]
[{"$f":"#REF!","v":{"$error":"#REF!"}}]
["MEMÓRIA DE CALCULO - 4ª MEDIÇÃO"]
["ITEM","DESCRIÇÃO","QUANT.","LARG.","COMP.","ALT.","TAXA","TOTAL","UNID","MEMORIAL FOTOGRÁFICO"]

{"sheet":"5ª MEDIÇÃO","index":4,"n_rows":4,"n_cols":10,"rows_kept":4,"cut":false,"hidden":true,"merged":[[0,0,0,8],[1,0,1,8],[2,0,2,8]]}
["TRIBUNAL DE JUSTIÇA DE PERNAMBUCO"]
[{"$f":"#REF!","v":{"$error":"#REF!"}}]
["MEMÓRIA DE CALCULO - 5ª MEDIÇÃO"]
["ITEM","DESCRIÇÃO","QUANT.","LARG.","COMP.","ALT.","TAXA","TOTAL","UNID","MEMORIAL FOTOGRÁFICO"]

{"sheet":"6ª MEDIÇÃO","index":5,"n_rows":4,"n_cols":10,"rows_kept":4,"cut":false,"hidden":true,"merged":[[0,0,0,8],[1,0,1,8],[2,0,2,8]]}
["TRIBUNAL DE JUSTIÇA DE PERNAMBUCO"]
[{"$f":"#REF!","v":{"$error":"#REF!"}}]
["MEMÓRIA DE CALCULO - 6ª MEDIÇÃO"]
["ITEM","DESCRIÇÃO","QUANT.","LARG.","COMP.","ALT.","TAXA","TOTAL","UNID","MEMORIAL FOTOGRÁFICO"]

{"sheet":"7ª MEDIÇÃO","index":6,"n_rows":4,"n_cols":10,"rows_kept":4,"cut":false,"hidden":true,"merged":[[0,0,0,8],[1,0,1,8],[2,0,2,8]]}
["TRIBUNAL DE JUSTIÇA DE PERNAMBUCO"]
[{"$f":"#REF!","v":{"$error":"#REF!"}}]
["MEMÓRIA DE CALCULO - 7ª MEDIÇÃO"]
["ITEM","DESCRIÇÃO","QUANT.","LARG.","COMP.","ALT.","TAXA","TOTAL","UNID","MEMORIAL FOTOGRÁFICO"]

{"sheet":"8ª MEDIÇÃO","index":7,"n_rows":4,"n_cols":10,"rows_kept":4,"cut":false,"hidden":true,"merged":[[0,0,0,8],[1,0,1,8],[2,0,2,8]]}
["TRIBUNAL DE JUSTIÇA DE PERNAMBUCO"]
[{"$f":"#REF!","v":{"$error":"#REF!"}}]
["MEMÓRIA DE CALCULO - 8ª MEDIÇÃO"]
["ITEM","DESCRIÇÃO","QUANT.","LARG.","COMP.","ALT.","TAXA","TOTAL","UNID","MEMORIAL FOTOGRÁFICO"]

{"sheet":"9ª MEDIÇÃO","index":8,"n_rows":4,"n_cols":10,"rows_kept":4,"cut":false,"hidden":true,"merged":[[0,0,0,8],[1,0,1,8],[2,0,2,8]]}
["TRIBUNAL DE JUSTIÇA DE PERNAMBUCO"]
[{"$f":"#REF!","v":{"$error":"#REF!"}}]
["MEMÓRIA DE CALCULO - 9ª MEDIÇÃO"]
["ITEM","DESCRIÇÃO","QUANT.","LARG.","COMP.","ALT.","TAXA","TOTAL","UNID","MEMORIAL FOTOGRÁFICO"]

{"sheet":"PLANILHA SINTÉTICA","index":9,"n_rows":71,"n_cols":7,"rows_kept":71,"cut":false,"hidden":false,"merged":[[6,5,6,6],[0,7,0,8],[1,7,1,8],[2,7,2,8],[0,0,0,3],[0,5,0,6],[1,0,2,3],[1,5,1,6],[2,5,2,6],[70,0,70,5],[3,7,3,8],[4,7,4,8],[7,5,7,6],[7,4,8,4],[7,0,8,0],[7,2,8,2],[7,3,8,3],[7,1,8,1],[5,7,5,8],[6,7,6,8],[3,0,4,3],[3,5,3,6],[4,5,4,6],[5,0,6,3],[5,5,5,6]]}
["PODER JUDICIÁRIO",null,null,null,"Obra:","SERVIÇOS DE REFORMA NAS ÁREAS INTERNAS DO FÓRUM DESEMBARGADOR RODOLFO AURELIANO"]
["TRIBUNAL DE JUSTIÇA DE PERNAMBUCO",null,null,null,"Local:","Av. Des. Guerra Barreto, s/n, Bairro: Ilha Joana Bezerra, Recife/PE - CEP: 50.080-9000"]
[null,null,null,null,"Contrato:","033/2024 -TJPE"]
["DIRETORIA DE ENGENHARIA E ARQUITETURA",null,null,null,"Situação:","Encerrada"]
[null,null,null,null,"Contratada:","TUDO FORTE CONSTRUÇÕES, COMÉRCIO E SERVIÇOS EIRELI"]
["QUANTITATIVOS E PREÇOS CONTRATADOS",null,null,null,"Valor Total:",{"$f":"G71","v":276813.40999999997}]
[null,null,null,null,"DATA ASSINATURA DO CONTRATO","2024-05-03"]
["ITEM","Cód. Efisco","DESCRIÇÃO","UN","QUANT. TOTAL","TOTAL"]
[null,null,null,null,null,"P. UNIT","P. TOTAL"]
["1.",null,"ART / ADMINISTRAÇÃO DA OBRA / MÁQUINAS E EQUIPAMENTOS",""]
["1.1","527411-7","ART EXECUÇÃO DE OBRA - RESPONSÁVEL TÉCNICO DA CONTRATADA.","un",1,320.73,{"$f":"TRUNC(E11*F11,2)","v":320.73}]
["1.2","401010-8","ADMINISTRAÇÃO LOCAL PELO PERÍODO DA OBRA","un/mês",4,13490.59,{"$f":"TRUNC(E12*F12,2)","v":53962.36}]
["1.3","314578-6","MOBILIZAÇÃO DA OBRA (PESSOAL, MÁQUINAS E EQUIPAMENTOS).","un",1,1292.27,1292.27]
["1.4","461831-9","LOCAÇÃO DE  ANDAIME METÁLICO TUBULAR TIPO TORRE INCLUINDO PLATAFORMA METÁLICA, GUARDA CORPO METÁLICO, ESCADA, INCLUSIVE MONTAGEM E DESMONTAGEM. ","mXmês",16,50.38,806.08]
["2.",null,"CANTEIRO DE OBRAS",null,null,null,0]
["2.1","501875-7","PLACA DE OBRA EM LONA PLÁSTICA  IMPRESSÃO DIGITAL ALTA RESOLUÇÃO COM ACABAMENTO EM ILHÓS, FIXAÇÃO EM ABRAÇADEIRAS DE NYLON, ESTRUTURA EM FERRO GALVANIZADO.","m²",4,447.52,1790.08]
["2.2","478789-7","LOCACAO DE CONTAINER 2,30 X 6,00 M, ALT. 2,50 M, COM 1 SANITARIO, PARA ESCRITORIO, COMPLETO, SEM DIVISORIAS INTERNAS (NAO INCLUI MOBILIZACAO/DESMOBILIZACAO)    ","un/mês",4,871.64,3486.56]
["2.3","519072-0","LOCACAO DE CONTAINER 2,30 X 4,30 M, ALT. 2,50 M, PARA SANITARIO, COM 3 BACIAS, 4 CHUVEIROS, 1 LAVATORIO E 1 MICTORIO (NAO INCLUI MOBILIZACAO/DESMOBILIZACAO)     ","un/mês",4,989.67,3958.68]
["2.4","565249-9","FRETE PARA ENTREGA OU RETIRADA DE CONTAINER PARA OBRA EM RECIFE  EM GUINDAUTO (MUNCK) MODELO ARGOS 20.5 COM CAPACIDADE PARA 6,0 TON A 4,0 M DE RAIO. ","un",4,1046.29,4185.16]
["2.5","467468-5","LIGAÇÃO PROVISÓRIA DE ENERGIA. (CONTAINER)","un",1,1461.41,1461.41]
["2.6","566694-5","LIGAÇÕES PROVISÓRIAS DE ÁGUA E ESGOTO SANITÁRIO. (CONTAINER)","un",1,797.68,797.68]
["2.7","409551-0","FORNECIMENTO E INSTALAÇÃO DE LONA PLÁSTICA PRETA, PARA PROTEÇÃO DO PISO.","m²",138,6.8,938.4]
["3.",null,"DEMOLIÇÕES, TRANSPORTE E REMOÇÕES","",null,null,0]
["3.1","568328-9","TRANSPORTE HORIZONTAL COM JERICA DE 60 L, DE MASSA/ GRANEL (UNIDADE: M3XKM). AF_07/2019","m³XKm",0.23,1778.69,409.09]
["3.2","553633-2","ALUGUEL DE CAÇAMBA ESTACIONÁRIA COM ATÉ 6M³ COM DESTINAÇÃO FINAL DE RESÍDUOS SÓLIDOS.","un",2,446.2,892.4]
["3.3","465159-6","TAXA DE DESCARTE DE RESÍDUOS DA CONSTRUÇÃO CIVIL.","t",11.76,29.21,343.5]
["3.4","433607-0","DEMOLIÇÃO DE FORROS","m²",387,11.67,4516.29]
["3.5","216786-7","DEMOLIÇÃO DE PISOS VINÍLICOS, EXCLUSIVE CONTRAPISO.","m²",81,7.81,632.61]
["3.6","208153-9","RETIRADA DE DIVISÓRIA TIPO NAVAL COM REAPROVEITAMENTO","m²",94.5,38.270000000000003,3616.51]
["3.7","589808-0","RECOLOCAÇÃO DE DIVISÓRIA TIPO NAVAL","m²",94.5,28.96,2736.72]
["3.8","212536-6","REMOÇÃO DE VIDRO LAMINADO.","m²",8.8699999999999992,17.93,159.03]
["4.",null,"PISO","",null,null,0]
["4.1","515591-6","FORNECIMENTO E INSTALAÇÃO DE PISO VINÍLICO EM RÉGUAS DE DIMENSÕES 121,92X17,78CM, LINHA ROCKY, NA COR 306-GOGH, BELGOTEX OU EQUIVALENTE, ESPESSURA 3MM, CAPA DE USO 0,5MM, INCLUSIVE MASSA NIVELADORA, FIXADO COM COLA SOBRE PISO DE CONCRETO EXISTENTE.","m²",237.25,275.63,65393.21]
["4.2","589811-0","FORNECIMENTO E INSTALAÇÃO DE PISO LAMINADO MOEDA, NA COR CINZA, ESPESSURA 1,6 MM, FIXADO COM COLA.","m²",5,156.34,781.7]
["5.",null,"FORRO / TETO","",null,null,0]
["5.1","532937-0","FORNECIMENTO E INSTALAÇÃO DE FORRO REMOVÍVEL EM PAINÉIS DE LÃ MINERAL, THERMATEX STAR DA AMF OU EQUIVALENTE, NAS DIMENSÕES DE 625X1250MM, ESPESSURA DE 15MM, ESTRUTURADO COM PERFIS METÁLICOS COM ACABAMENTO NA COR BRANCA.","m²",387,103.12,39907.440000000002]
["5.2","589861-7","FORNECIMENTO E INSTALAÇÃO DE TELA DE PROTEÇÃO EM ARAME GALVANIZADO, HEXAGONAL, D=1/2\", FIO 24 BWG","m²",16,41.45,663.2]
["6.",null,"PINTURA / PAREDES","",null,null,0]
["6.1","432003-4","FUNDO SELADOR ACRÍLICO, APLICAÇÃO MANUAL EM PAREDE, UMA DEMÃO. AF_04/2023","m²",40.380000000000003,4.43,178.88]
["6.2","441101-3","EMASSAMENTO COM MASSA LÁTEX, APLICAÇÃO EM PAREDE, DUAS DEMÃOS, LIXAMENTO MANUAL. AF_04/2023","m²",40.380000000000003,18.47,745.81]
["6.3","488420-5","APLICAÇÃO MANUAL DE PINTURA COM TINTA ACRÍLICA SEMI-BRILHO, COR BRANCO GELO, CORAL DECORA OU EQUIVALENTE, EM PAREDES INTERNAS, DUAS DEMÃOS.","m²",269.22000000000003,13.78,3709.85]
["6.4","589848-0","REPARO DE FISSURA EM GESSO COM FITA AUTOADESIVA LARG.= 5CM","m",2.5,6.36,15.9]
["7.",null,"PERFIL PARA PISO","",null,null,0]
["7.1","589868-4","FORNECIMENTO E INSTALAÇÃO DE PERFIL EM ALUMÍNIO ANODIZADO NA COR BRONZE, A SER FIXADO NA ESTRUTURA METÁLICA DA PELE DE VIDRO E NO PISO, CONFORME DETALHE.","m",102.44,307.54000000000002,31504.39]
["8.",null,"SUBSTITUIÇÃO DE VIDROS",null,null,null,0]
["8.1","457104-5","FORNECIMENTO E INSTALAÇÃO DE VIDRO LAMINADO BRONZE REFLETIVO DE 8MM.","m²",8.8699999999999992,774.8,6872.47]
["9.",null,"INSTALAÇÕES ELÉTRICAS",null,null,null,0]
["9.1.",null,"INFRAESTRUTURA/ACABAMENTO","",null,null,0]
["9.1.1","309668-8","INTERRUPTOR DE SOBREPOR DE UMA SEÇÃO PARA CAIXA 4X2 POL., COMPOSTO POR SUPORTE, PLACA E MÓDULO NA LINHA PIALPLUS OU EQUIVALENTE, NA COR BEGE E DEMAIS ACESSÓRIOS, INCLUSIVE INSTALAÇÃO.","cj",9,29.98,269.82]
["9.1.2","381814-4","INTERRUPTOR DE SOBREPOR DE DUAS SEÇÕES PARA CAIXA 4X2 POL., COMPOSTO POR SUPORTE, PLACA E MÓDULOS NA LINHA PIALPLUS OU EQUIVALENTE, NA COR BEGE E DEMAIS ACESSÓRIOS, INCLUSIVE INSTALAÇÃO.","cj",1,47.17,47.17]
["9.1.3","589839-0","INTERRUPTOR DE SOBREPOR DE TRÊS SEÇÕES PARA CAIXA 4X2 POL., COMPOSTO POR SUPORTE, PLACA E MÓDULOS NA LINHA PIALPLUS OU EQUIVALENTE, NA COR BEGE E DEMAIS ACESSÓRIOS, INCLUSIVE INSTALAÇÃO.","cj",1,57.46,57.46]
["9.1.4","589841-2","TOMADA DE SOBREPOR (2P+T) PARA CAIXA DE 4 X 2 POL., COM PLACA E MÓDULO NA LINHA PIALPLUS OU EQUIVALENTE, SENDO DOIS MÓDULOS DE 10A, DEMAIS ACESSÓRIOS, INCLUSIVE INSTALAÇÃO.","cj",7,31.56,220.92]
["9.1.5","430980-4","LUMINÁRIA DE EMBUTIR P/ 02 (DUAS) LÂMPADAS LED DE 18W, SEM ALOJAMENTO; CORPO EM CHAPA DE AÇO GALVANIZADO C/ PINTURA ELETROSTÁTICA EM PÓ DE POLIÉSTER EPÓXI; REFLETOR FACETADO EM ALUMÍNIO ANODIZADO DE ALTA PUREZA E REFLETÂNCIA; ALETAS PARABÓLICAS EM ALUMÍNIO; SOQUETES EM POLICARBONATO; INCLUSIVE LÂMPADAS LED TUBULAR PHILIPS, OSRAM, OU EQUIVALENTE, 2X18W, 220V, DEMAIS ACESSÓRIOS E INSTALAÇÃO. REF. LUMICENTER, LUMINÁRIAS PROJETO, ITAIM, STILLUX, INDELPA OU EQUIVALENTE. 0,5M DE CABO PP2,5MM², 01 CONECTOR MACHO, 01 CONECTOR FÊMEA","cj",84,199.19,16731.96]
["9.1.6","556497-2","LUMINÁRIA CIRCULAR DE EMBUTIR ALETADA PARA 02 LÂMPADAS LED BULBO DE 11W, COM ARO DE ACABAMENTO EM CHAPA DE AÇO PINTADA,  REFLETOR E ALETAS EM ALUMÍNIO REPUXADO E ANODIZADO DE ALTA PUREZA E REFLETÂNCIA, SOQUETES EM POLICARBONATO E DEMAIS ACESSÓRIOS, INCLUSIVE DUAS LÂMPADAS LED 11W, E27, 220V, 5000K.  FORNECIMENTO E INSTALAÇÃO. COR PRETA","cj",1,137.19,137.19]
["9.2.",null,"DIVERSOS",null,null,null,0]
["9.2.1","564378-3","CONDULETE EM PVC , PARA ELETRODUTO ROSCÁVEL DE 3/4\", APARENTE, INCLUSIVE ACESSORIOS DE FIXAÇÃO. FORNECIMENTO E INSTALAÇÃO.","un",18,43.81,788.58]
["9.2.2","497656-8","CANALETA PVC 50X20MM E ACESSÓRIOS DE FIXAÇÃO. FORNECIMENTO E INSTALAÇÃO.","un",48.5,114.1,5533.85]
["9.2.3","589323-2","DISJUNTOR TERMOMAGNÉTICO MONOPOLAR, CORRENTE NOMINAL DE 6A A 16A, PADRÃO DIN, SIEMENS OU EQUIVALENTE, INCLUINDO TERMINAL À COMPRESSÃO. FORNECIMENTO E INSTALAÇÃO. ","un",2,39.51,79.02]
["9.3.",null,"PONTOS","",null,null,0]
["9.3.1","429092-5","PONTO DE LUZ EM TETO, COMPOSTO POR FIAÇÃO EM CABO FLEXÍVEL DE 2,5MM² AFUMEX, ATOX, AFITOX OU EQUIVALENTE (NÃO-HALOGENADO), ISOLAÇÃO 750V., ELETRODUTO DE PVC RÍGIDO DE 3/4\" COM LUVA DE ROSCA INTERNA, CURVAS, CAIXA OCTOGONAL E DEMAIS ACESSÓRIOS, DESDE O PONTO DE LUZ ATÉ O QUADRO DE DISTRIBUIÇÃO.","PT",85,70.03,5952.55]
["9.3.2","589851-0","PONTO PARA INTERRUPTOR SIMPLES DE UMA SEÇÃO SOBREPOR, COMPOSTO POR FIAÇÃO EM CABO DE COBRE FLEXÍVEL DE 2,5MM², COM ISOLAÇÃO EM COMPOSTO TERMOPLÁSTICO POLIOLEFÍNICO NÃO HALOGENADO, NÃO PROPAGANTE À CHAMA, COM BAIXA EMISSÃO DE FUMAÇA E GASES TÓXICOS E CLASSE TÉRMICA 70° C (AFUMEX, ATOX, AFITOX OU EQUIVALENTE (NÃO-HALOGENADO), ISOLAÇÃO 750V.  FORNECIMENTO E INSTALAÇÃO. ","PT",9,11.29,101.61]
["9.3.3","589853-6","PONTO PARA INTERRUPTOR SIMPLES DE DUAS SEÇÕES SOBREPOR, COMPOSTO POR FIAÇÃO EM CABO DE COBRE FLEXÍVEL DE 2,5MM², COM ISOLAÇÃO EM COMPOSTO TERMOPLÁSTICO POLIOLEFÍNICO NÃO HALOGENADO, NÃO PROPAGANTE À CHAMA, COM BAIXA EMISSÃO DE FUMAÇA E GASES TÓXICOS E CLASSE TÉRMICA 70° C (AFUMEX, ATOX, AFITOX OU EQUIVALENTE (NÃO-HALOGENADO), ISOLAÇÃO 750V.  FORNECIMENTO E INSTALAÇÃO. ","PT",1,22.61,22.61]
["9.3.4","589854-4","PONTO PARA INTERRUPTOR SIMPLES DE TRÊS SEÇÕES SOBREPOR, COMPOSTO POR FIAÇÃO EM CABO DE COBRE FLEXÍVEL DE 2,5MM², COM ISOLAÇÃO EM COMPOSTO TERMOPLÁSTICO POLIOLEFÍNICO NÃO HALOGENADO, NÃO PROPAGANTE À CHAMA, COM BAIXA EMISSÃO DE FUMAÇA E GASES TÓXICOS E CLASSE TÉRMICA 70° C (AFUMEX, ATOX, AFITOX OU EQUIVALENTE (NÃO-HALOGENADO), ISOLAÇÃO 750V.  FORNECIMENTO E INSTALAÇÃO. ","PT",2,33.94,67.88]
["9.3.5","589857-9","PONTO PARA TOMADA 2P+T (SIMPLES) SOBREPOR, COMPOSTO POR FIAÇÃO EM CABO DE COBRE FLEXÍVEL DE 2,5MM², COM ISOLAÇÃO EM COMPOSTO TERMOPLÁSTICO POLIOLEFÍNICO NÃO HALOGENADO, NÃO PROPAGANTE À CHAMA, COM BAIXA EMISSÃO DE FUMAÇA E GASES TÓXICOS E CLASSE TÉRMICA 70° C (AFUMEX, ATOX, AFITOX OU EQUIVALENTE (NÃO-HALOGENADO), ISOLAÇÃO 750V.  FORNECIMENTO E INSTALAÇÃO. ","PT",7,84.15,589.04999999999995]
["10.",null,"CLIMATIZAÇÃO",null,null,null,0]
["10.1","389297-2","FORNECIMENTO E INSTALAÇÃO , CONFORME PROJETO, DE CONDICIONADOR DE AR DO TIPO SPLIT CASSETE, COM CAPACIDADE DE 18.000 BTU/H, INVERTER, COM CONTROLE REMOTO SEM FIO, CLASSIFICAÇÃO ENERGÉTICA A (SELO PROCEL). REALIZANDO OS SERVIÇOS DE CONFECÇÃO DE LINHAS FRIGORÍFICAS EM TUBO DE COBRE UTILIZANDO NITROGÊNIO COM FLUXO CONSTANTE PARA REALIZAÇÃO DAS SOLDAS EVITANDO IMPUREZAS. FORNECIMENTO E INSTALAÇÃO DE CARGA DE FLUIDO REFRIGERANTE ECOLÓGICO R-410 A E DE ISOLANTE TÉRMICO EM ESPUMA ELASTOMÉRICOA PARA OS TUBOS DE COBRE. REALIZAR A INTERLIGAÇÃO ENTRE AS UNIDADES EVAPORADORA E CONDENSADORA COM CABO PP 4X1,5MM; INCLUSIVE FIXAÇÃO DE UNIDADE EVAPORADORA E INTERLIGAÇÃO DE DRENOS, CALÇOS DE BORRACHA, BEM COMO TODOS OS ACESSÓRIOS NECESSÁRIOS PARA A COMPLETA INSTALAÇÃO E FUNCIONAMENTO DO SISTEMA, E LIMPEZA FINAL DA OBRA. A EXECUÇÃO DA INSTALAÇÃO DEVE SER EXECUTADA POR TÉCNICO DE REFRIGERAÇÃO DEVIDAMENTE ESPECIALIZADO EM EQUIPAMENTOS INVERTER. ","un",1,7136.96,7136.96]
["10.2","474701-1","FORNECIMENTO E INSTALAÇÃO DE TUBO PVC SOLDÁVEL, DN 32 MM, INTERLIGANDO O DRENO DE AR CONDICIONADO, ISOLADO TERMICAMENTE COM ISOTUBO, A REDE DE DRENO ATUAL, PASSANDO O NOVO DRENO POR CIMA DO FORRO.","m",10,23.55,235.5]
["11.",null,"LIMPEZA FINAL / DESMOBILIZAÇÃO DA OBRA",null,null,null,0]
["11.1","395327-0","LIMPEZA GERAL DA OBRA","m²",387,3.8,1470.6]
["11.2","314578-6","DESMOBILIZAÇÃO DA OBRA (PESSOAL, MÁQUINAS E EQUIPAMENTOS).","un",1,1292.27,1292.27]
["TOTAL DA OBRA:",null,null,null,null,null,{"$f":"SUM(G11:G70)","v":276813.40999999997}]